Workbook

Sheet Hoja1
B2: DATOS INICIALES | E2: PUNTO DE EQUILIBRIO | H2: DATOS INICIALES | K2: PUNTO DE EQUILIBRIO | N2: DATOS INICIALES | Q2: PUNTO DE EQUILIBRIO | T2: DATOS INICIALES | W2: PUNTO DE EQUILIBRIO | Z2: DATOS INICIALES | AC2: PUNTO DE EQUILIBRIO
B3: COSTOS FIJOS | C3: =Hoja2!B3 -> 3000 | E3: =C10 -> 0 | F3: =E11 -> 6213.999999 | H3: COSTOS FIJOS | I3: =Hoja2!C3 -> 22389 | K3: =I10 -> 0 | L3: =K11 -> 79279 | N3: COSTOS FIJOS | O3: =Hoja2!D3 -> 34560 | Q3: =O10 -> 0 | R3: =Q11 -> 113011 | T3: COSTOS FIJOS | U3: =Hoja2!E3 -> 45980 | W3: =U10 -> 0 | X3: =W11 -> 101108 | Z3: COSTOS FIJOS | AA3: =Hoja2!F3 -> 26879 | AC3: =AA10 -> 0 | AD3: =AC11 -> 76191
B4: COSTOS VARIABLES | C4: =Hoja2!B4 -> 3214 | E4: =E10 -> 107.137931 | F4: =E11 -> 6213.999999 | H4: COSTOS VARIABLES | I4: =Hoja2!C4 -> 56890 | K4: =K10 -> 4663.470588 | L4: =K11 -> 79279 | N4: COSTOS VARIABLES | O4: =Hoja2!D4 -> 78451 | Q4: =Q10 -> 6647.705882 | R4: =Q11 -> 113011 | T4: COSTOS VARIABLES | U4: =Hoja2!E4 -> 55128 | W4: =W10 -> 5947.529412 | X4: =W11 -> 101108 | Z4: COSTOS VARIABLES | AA4: =Hoja2!F4 -> 49312 | AC4: =AC10 -> 4481.823529 | AD4: =AC11 -> 76191
B5: COSTO TOTAL | C5: =SUM(C3:C4) -> 6214 | E5: =E10 -> 107.137931 | F5: =C11 -> 0 | H5: COSTO TOTAL | I5: =SUM(I3:I4) -> 79279 | K5: =K10 -> 4663.470588 | L5: =I11 -> 0 | N5: COSTO TOTAL | O5: =SUM(O3:O4) -> 113011 | Q5: =Q10 -> 6647.705882 | R5: =O11 -> 0 | T5: COSTO TOTAL | U5: =SUM(U3:U4) -> 101108 | W5: =W10 -> 5947.529412 | X5: =U11 -> 0 | Z5: COSTO TOTAL | AA5: =SUM(AA3:AA4) -> 76191 | AC5: =AC10 -> 4481.823529 | AD5: =AA11 -> 0
B6: $ VENTAS | C6: =SUM(V.P.E.1) -> 6213.999999 | E6: =E10 -> 107.137931 | F6: =E11 -> 6213.999999 | H6: $ VENTAS | I6: =SUM(V.P.E.2) -> 79279 | K6: =K10 -> 4663.470588 | L6: =K11 -> 79279 | N6: $ VENTAS | O6: =SUM(V.P.E.3) -> 113011 | Q6: =Q10 -> 6647.705882 | R6: =Q11 -> 113011 | T6: $ VENTAS | U6: =SUM(V.P.E.4) -> 101108 | W6: =W10 -> 5947.529412 | X6: =W11 -> 101108 | Z6: $ VENTAS | AA6: =SUM(V.P.E.5) -> 76191 | AC6: =AC10 -> 4481.823529 | AD6: =AC11 -> 76191
B7: P.E. | C7: =C6-C5 -> -9.99999429e-07 | H7: P.E. | I7: =I6-I5 -> 0 | N7: P.E. | O7: =O6-O5 -> 0 | T7: P.E. | U7: =U6-U5 -> 9.999930626e-07 | Z7: P.E. | AA7: =AA6-AA5 -> 0
B9: DATOS PARA EL GRÁFICO | H9: DATOS PARA EL GRÁFICO | N9: DATOS PARA EL GRÁFICO | T9: DATOS PARA EL GRÁFICO | Z9: DATOS PARA EL GRÁFICO
B10: Q VENTAS | C10: 0 | D10: =E10*0.5 -> 53.56896551 | E10: =SUM(C.P.E.1) -> 107.137931 | F10: =E10*1.5 -> 160.7068965 | H10: Q VENTAS | I10: 0 | J10: =K10*0.5 -> 2331.735294 | K10: =SUM(C.P.E.2) -> 4663.470588 | L10: =K10*1.5 -> 6995.205882 | N10: Q VENTAS | O10: 0 | P10: =Q10*0.5 -> 3323.852941 | Q10: =SUM(C.P.E.3) -> 6647.705882 | R10: =Q10*1.5 -> 9971.558824 | T10: Q VENTAS | U10: 0 | V10: =W10*0.5 -> 2973.764706 | W10: =SUM(C.P.E.4) -> 5947.529412 | X10: =W10*1.5 -> 8921.294118 | Z10: Q VENTAS | AA10: 0 | AB10: =AC10*0.5 -> 2240.911765 | AC10: =SUM(C.P.E.5) -> 4481.823529 | AD10: =AC10*1.5 -> 6722.735294
B11: $ VENTAS | C11: 0 | D11: =E11*0.5 -> 3107 | E11: =SUM(V.P.E.1) -> 6213.999999 | F11: =E11*1.5 -> 9320.999999 | H11: $ VENTAS | I11: 0 | J11: =K11*0.5 -> 39639.5 | K11: =SUM(V.P.E.2) -> 79279 | L11: =K11*1.5 -> 118918.5 | N11: $ VENTAS | O11: 0 | P11: =Q11*0.5 -> 56505.5 | Q11: =SUM(V.P.E.3) -> 113011 | R11: =Q11*1.5 -> 169516.5 | T11: $ VENTAS | U11: 0 | V11: =W11*0.5 -> 50554 | W11: =SUM(V.P.E.4) -> 101108 | X11: =W11*1.5 -> 151662 | Z11: $ VENTAS | AA11: 0 | AB11: =AC11*0.5 -> 38095.5 | AC11: =SUM(V.P.E.5) -> 76191 | AD11: =AC11*1.5 -> 114286.5
B12: COSTO VARIABLE | C12: 0 | D12: =E12*0.5 -> 1607 | E12: =C4 -> 3214 | F12: =E12*1.5 -> 4821 | H12: COSTO VARIABLE | I12: 0 | J12: =K12*0.5 -> 28445 | K12: =I4 -> 56890 | L12: =K12*1.5 -> 85335 | N12: COSTO VARIABLE | O12: 0 | P12: =Q12*0.5 -> 39225.5 | Q12: =O4 -> 78451 | R12: =Q12*1.5 -> 117676.5 | T12: COSTO VARIABLE | U12: 0 | V12: =W12*0.5 -> 27564 | W12: =U4 -> 55128 | X12: =W12*1.5 -> 82692 | Z12: COSTO VARIABLE | AA12: 0 | AB12: =AC12*0.5 -> 24656 | AC12: =AA4 -> 49312 | AD12: =AC12*1.5 -> 73968
B13: COSTO FIJO | C13: =$C$3 -> 3000 | D13: =$C$3 -> 3000 | E13: =$C$3 -> 3000 | F13: =$C$3 -> 3000 | H13: COSTO FIJO | I13: =$I$3 -> 22389 | J13: =$I$3 -> 22389 | K13: =$I$3 -> 22389 | L13: =$I$3 -> 22389 | N13: COSTO FIJO | O13: =$O$3 -> 34560 | P13: =$O$3 -> 34560 | Q13: =$O$3 -> 34560 | R13: =$O$3 -> 34560 | T13: COSTO FIJO | U13: =$U$3 -> 45980 | V13: =$U$3 -> 45980 | W13: =$U$3 -> 45980 | X13: =$U$3 -> 45980 | Z13: COSTO FIJO | AA13: =$AA$3 -> 26879 | AB13: =$AA$3 -> 26879 | AC13: =$AA$3 -> 26879 | AD13: =$AA$3 -> 26879
B14: COSTO TOTAL | C14: =SUM(C12:C13) -> 3000 | D14: =SUM(D12:D13) -> 4607 | E14: =SUM(E12:E13) -> 6214 | F14: =SUM(F12:F13) -> 7821 | H14: COSTO TOTAL | I14: =SUM(I12:I13) -> 22389 | J14: =SUM(J12:J13) -> 50834 | K14: =SUM(K12:K13) -> 79279 | L14: =SUM(L12:L13) -> 107724 | N14: COSTO TOTAL | O14: =SUM(O12:O13) -> 34560 | P14: =SUM(P12:P13) -> 73785.5 | Q14: =SUM(Q12:Q13) -> 113011 | R14: =SUM(R12:R13) -> 152236.5 | T14: COSTO TOTAL | U14: =SUM(U12:U13) -> 45980 | V14: =SUM(V12:V13) -> 73544 | W14: =SUM(W12:W13) -> 101108 | X14: =SUM(X12:X13) -> 128672 | Z14: COSTO TOTAL | AA14: =SUM(AA12:AA13) -> 26879 | AB14: =SUM(AB12:AB13) -> 51535 | AC14: =SUM(AC12:AC13) -> 76191 | AD14: =SUM(AD12:AD13) -> 100847
B15: BENEFICIO | C15: =+C11-C14 -> -3000 | D15: =+D11-D14 -> -1500 | E15: =+E11-E14 -> -9.99999429e-07 | F15: =+F11-F14 -> 1499.999999 | H15: BENEFICIO | I15: =I11-I14 -> -22389 | J15: =J11-J14 -> -11194.5 | K15: =K11-K14 -> 0 | L15: =L11-L14 -> 11194.5 | N15: BENEFICIO | O15: =O11-O14 -> -34560 | P15: =P11-P14 -> -17280 | Q15: =Q11-Q14 -> 0 | R15: =R11-R14 -> 17280 | T15: BENEFICIO | U15: =U11-U14 -> -45980 | V15: =V11-V14 -> -22990 | W15: =W11-W14 -> 9.999930626e-07 | X15: =X11-X14 -> 22990 | Z15: BENEFICIO | AA15: =AA11-AA14 -> -26879 | AB15: =AB11-AB14 -> -13439.5 | AC15: =AC11-AC14 -> 0 | AD15: =AD11-AD14 -> 13439.5
C16: =IF(SUM(V.P.E.1)+1<C5," NUNCA ALCANZARÁS EL PUNTO DE EQUILIBRIO CON ESOS DATOS!"," PARA ALCANZAR EL PUNTO DE EQUILIBRIO DEBES VENDER "&TEXT(SUM(C.P.E.1),"#,##0")&" UNIDADES AL MES") -> PARA ALCANZAR EL PUNTO DE EQUILIBRIO DEBES VENDER 107 UNIDADES AL MES | I16: =IF(SUM(V.P.E.2)+1<I5," NUNCA ALCANZARÁS EL PUNTO DE EQUILIBRIO CON ESOS DATOS!"," PARA ALCANZAR EL PUNTO DE EQUILIBRIO DEBES VENDER "&TEXT(SUM(C.P.E.2),"#,##0")&" UNIDADES AL MES") -> PARA ALCANZAR EL PUNTO DE EQUILIBRIO DEBES VENDER 4,663 UNIDADES AL MES | O16: =IF(SUM(V.P.E.3)+1<O5," NUNCA ALCANZARÁS EL PUNTO DE EQUILIBRIO CON ESOS DATOS!"," PARA ALCANZAR EL PUNTO DE EQUILIBRIO DEBES VENDER "&TEXT(SUM(C.P.E.3),"#,##0")&" UNIDADES AL MES") -> PARA ALCANZAR EL PUNTO DE EQUILIBRIO DEBES VENDER 6,648 UNIDADES AL MES | U16: =IF(SUM(V.P.E.4)+1<U5," NUNCA ALCANZARÁS EL PUNTO DE EQUILIBRIO CON ESOS DATOS!"," PARA ALCANZAR EL PUNTO DE EQUILIBRIO DEBES VENDER "&TEXT(SUM(C.P.E.4),"#,##0")&" UNIDADES AL MES") -> PARA ALCANZAR EL PUNTO DE EQUILIBRIO DEBES VENDER 5,948 UNIDADES AL MES | AA16: =IF(SUM(V.P.E.5)+1<AA5," NUNCA ALCANZARÁS EL PUNTO DE EQUILIBRIO CON ESOS DATOS!"," PARA ALCANZAR EL PUNTO DE EQUILIBRIO DEBES VENDER "&TEXT(SUM(C.P.E.5),"#,##0")&" UNIDADES AL MES") -> PARA ALCANZAR EL PUNTO DE EQUILIBRIO DEBES VENDER 4,482 UNIDADES AL MES
C18: UTILIDADES | E18: PÉRDIDAS | I18: UTILIDADES | K18: PÉRDIDAS | O18: UTILIDADES | Q18: PÉRDIDAS | U18: UTILIDADES | W18: PÉRDIDAS | AA18: UTILIDADES | AC18: PÉRDIDAS
C19: =E10*1.1 -> 117.8517241 | D19: =E11*1.1 -> 6835.399999 | E19: =E10*0.9 -> 96.42413792 | F19: =E11*0.9 -> 5592.599999 | I19: =K10*1.1 -> 5129.817647 | J19: =K11*1.1 -> 87206.9 | K19: =K10*0.9 -> 4197.123529 | L19: =K11*0.9 -> 71351.1 | O19: =Q10*1.1 -> 7312.476471 | P19: =Q11*1.1 -> 124312.1 | Q19: =Q10*0.9 -> 5982.935294 | R19: =Q11*0.9 -> 101709.9 | U19: =W10*1.1 -> 6542.282353 | V19: =W11*1.1 -> 111218.8 | W19: =W10*0.9 -> 5352.776471 | X19: =W11*0.9 -> 90997.2 | AA19: =AC10*1.1 -> 4930.005882 | AB19: =AC11*1.1 -> 83810.1 | AC19: =AC10*0.9 -> 4033.641176 | AD19: =AC11*0.9 -> 68571.9
C20: =C19 -> 117.8517241 | D20: =E12*1.1+(C3) -> 6535.4 | E20: =E19 -> 96.42413792 | F20: =E12*0.9+(C3) -> 5892.6 | I20: =I19 -> 5129.817647 | J20: =K12*1.1+(I3) -> 84968 | K20: =K19 -> 4197.123529 | L20: =K12*0.9+(I3) -> 73590 | O20: =O19 -> 7312.476471 | P20: =Q12*1.1+(O3) -> 120856.1 | Q20: =Q19 -> 5982.935294 | R20: =Q12*0.9+(O3) -> 105165.9 | U20: =U19 -> 6542.282353 | V20: =W12*1.1+(U3) -> 106620.8 | W20: =W19 -> 5352.776471 | X20: =W12*0.9+(U3) -> 95595.2 | AA20: =AA19 -> 4930.005882 | AB20: =AC12*1.1+(AA3) -> 81122.2 | AC20: =AC19 -> 4033.641176 | AD20: =AC12*0.9+(AA3) -> 71259.8
C21: =E10*1.2 -> 128.5655172 | D21: =E11*1.2 -> 7456.799999 | E21: =E10*0.8 -> 85.71034481 | F21: =E11*0.8 -> 4971.199999 | I21: =K10*1.2 -> 5596.164706 | J21: =K11*1.2 -> 95134.8 | K21: =K10*0.8 -> 3730.776471 | L21: =K11*0.8 -> 63423.2 | O21: =Q10*1.2 -> 7977.247059 | P21: =Q11*1.2 -> 135613.2 | Q21: =Q10*0.8 -> 5318.164706 | R21: =Q11*0.8 -> 90408.8 | U21: =W10*1.2 -> 7137.035294 | V21: =W11*1.2 -> 121329.6 | W21: =W10*0.8 -> 4758.023529 | X21: =W11*0.8 -> 80886.4 | AA21: =AC10*1.2 -> 5378.188235 | AB21: =AC11*1.2 -> 91429.2 | AC21: =AC10*0.8 -> 3585.458824 | AD21: =AC11*0.8 -> 60952.8
C22: =C21 -> 128.5655172 | D22: =E12*1.2+(C3) -> 6856.8 | E22: =E21 -> 85.71034481 | F22: =E12*0.8+(C3) -> 5571.2 | I22: =I21 -> 5596.164706 | J22: =K12*1.2+(I3) -> 90657 | K22: =K21 -> 3730.776471 | L22: =K12*0.8+(I3) -> 67901 | O22: =O21 -> 7977.247059 | P22: =Q12*1.2+(O3) -> 128701.2 | Q22: =Q21 -> 5318.164706 | R22: =Q12*0.8+(O3) -> 97320.8 | U22: =U21 -> 7137.035294 | V22: =W12*1.2+(U3) -> 112133.6 | W22: =W21 -> 4758.023529 | X22: =W12*0.8+(U3) -> 90082.4 | AA22: =AA21 -> 5378.188235 | AB22: =AC12*1.2+(AA3) -> 86053.4 | AC22: =AC21 -> 3585.458824 | AD22: =AC12*0.8+(AA3) -> 66328.6
C23: =E10*1.3 -> 139.2793103 | D23: =E11*1.3 -> 8078.199999 | E23: =E10*0.7 -> 74.99655171 | F23: =E11*0.7 -> 4349.799999 | I23: =K10*1.3 -> 6062.511765 | J23: =K11*1.3 -> 103062.7 | K23: =K10*0.7 -> 3264.429412 | L23: =K11*0.7 -> 55495.3 | O23: =Q10*1.3 -> 8642.017647 | P23: =Q11*1.3 -> 146914.3 | Q23: =Q10*0.7 -> 4653.394118 | R23: =Q11*0.7 -> 79107.7 | U23: =W10*1.3 -> 7731.788235 | V23: =W11*1.3 -> 131440.4 | W23: =W10*0.7 -> 4163.270588 | X23: =W11*0.7 -> 70775.6 | AA23: =AC10*1.3 -> 5826.370588 | AB23: =AC11*1.3 -> 99048.3 | AC23: =AC10*0.7 -> 3137.276471 | AD23: =AC11*0.7 -> 53333.7
C24: =C23 -> 139.2793103 | D24: =E12*1.3+(C3) -> 7178.2 | E24: =E23 -> 74.99655171 | F24: =E12*0.7+(C3) -> 5249.8 | I24: =I23 -> 6062.511765 | J24: =K12*1.3+(I3) -> 96346 | K24: =K23 -> 3264.429412 | L24: =K12*0.7+(I3) -> 62212 | O24: =O23 -> 8642.017647 | P24: =Q12*1.3+(O3) -> 136546.3 | Q24: =Q23 -> 4653.394118 | R24: =Q12*0.7+(O3) -> 89475.7 | U24: =U23 -> 7731.788235 | V24: =W12*1.3+(U3) -> 117646.4 | W24: =W23 -> 4163.270588 | X24: =W12*0.7+(U3) -> 84569.6 | AA24: =AA23 -> 5826.370588 | AB24: =AC12*1.3+(AA3) -> 90984.6 | AC24: =AC23 -> 3137.276471 | AD24: =AC12*0.7+(AA3) -> 61397.4
C25: =E10*1.4 -> 149.9931034 | D25: =E11*1.4 -> 8699.599999 | E25: =E10*0.6 -> 64.28275861 | F25: =E11*0.6 -> 3728.399999 | I25: =K10*1.4 -> 6528.858824 | J25: =K11*1.4 -> 110990.6 | K25: =K10*0.6 -> 2798.082353 | L25: =K11*0.6 -> 47567.4 | O25: =Q10*1.4 -> 9306.788235 | P25: =Q11*1.4 -> 158215.4 | Q25: =Q10*0.6 -> 3988.623529 | R25: =Q11*0.6 -> 67806.6 | U25: =W10*1.4 -> 8326.541177 | V25: =W11*1.4 -> 141551.2 | W25: =W10*0.6 -> 3568.517647 | X25: =W11*0.6 -> 60664.8 | AA25: =AC10*1.4 -> 6274.552941 | AB25: =AC11*1.4 -> 106667.4 | AC25: =AC10*0.6 -> 2689.094118 | AD25: =AC11*0.6 -> 45714.6
C26: =C25 -> 149.9931034 | D26: =E12*1.4+(C3) -> 7499.6 | E26: =E25 -> 64.28275861 | F26: =E12*0.6+(C3) -> 4928.4 | I26: =I25 -> 6528.858824 | J26: =K12*1.4+(I3) -> 102035 | K26: =K25 -> 2798.082353 | L26: =K12*0.6+(I3) -> 56523 | O26: =O25 -> 9306.788235 | P26: =Q12*1.4+(O3) -> 144391.4 | Q26: =Q25 -> 3988.623529 | R26: =Q12*0.6+(O3) -> 81630.6 | U26: =U25 -> 8326.541177 | V26: =W12*1.4+(U3) -> 123159.2 | W26: =W25 -> 3568.517647 | X26: =W12*0.6+(U3) -> 79056.8 | AA26: =AA25 -> 6274.552941 | AB26: =AC12*1.4+(AA3) -> 95915.8 | AC26: =AC25 -> 2689.094118 | AD26: =AC12*0.6+(AA3) -> 56466.2
C27: =AVERAGE(C23:C24) -> 139.2793103 | D27: =AVERAGE(D23:D24) -> 7628.199999 | E27: =E10*0.5 -> 53.56896551 | F27: =E11*0.5 -> 3107 | I27: =AVERAGE(I23:I24) -> 6062.511765 | J27: =AVERAGE(J23:J24) -> 99704.35 | K27: =K10*0.5 -> 2331.735294 | L27: =K11*0.5 -> 39639.5 | O27: =AVERAGE(O23:O24) -> 8642.017647 | P27: =AVERAGE(P23:P24) -> 141730.3 | Q27: =Q10*0.5 -> 3323.852941 | R27: =Q11*0.5 -> 56505.5 | U27: =AVERAGE(U23:U24) -> 7731.788235 | V27: =AVERAGE(V23:V24) -> 124543.4 | W27: =W10*0.5 -> 2973.764706 | X27: =W11*0.5 -> 50554 | AA27: =AVERAGE(AA23:AA24) -> 5826.370588 | AB27: =AVERAGE(AB23:AB24) -> 95016.45 | AC27: =AC10*0.5 -> 2240.911765 | AD27: =AC11*0.5 -> 38095.5
C28: =AVERAGE(E27:E28) -> 53.56896551 | D28: =AVERAGE(F27:F28) -> 3857 | E28: =E27 -> 53.56896551 | F28: =E12*0.5+(C3) -> 4607 | I28: =AVERAGE(K27:K28) -> 2331.735294 | J28: =AVERAGE(L27:L28) -> 45236.75 | K28: =K27 -> 2331.735294 | L28: =K12*0.5+(I3) -> 50834 | O28: =AVERAGE(Q27:Q28) -> 3323.852941 | P28: =AVERAGE(R27:R28) -> 65145.5 | Q28: =Q27 -> 3323.852941 | R28: =Q12*0.5+(O3) -> 73785.5 | U28: =AVERAGE(W27:W28) -> 2973.764706 | V28: =AVERAGE(X27:X28) -> 62049 | W28: =W27 -> 2973.764706 | X28: =W12*0.5+(U3) -> 73544 | AA28: =AVERAGE(AC27:AC28) -> 2240.911765 | AB28: =AVERAGE(AD27:AD28) -> 44815.25 | AC28: =AC27 -> 2240.911765 | AD28: =AC12*0.5+(AA3) -> 51535
E29: =E10*0.4 -> 42.85517241 | F29: =E11*0.4 -> 2485.6 | K29: =K10*0.4 -> 1865.388235 | L29: =K11*0.4 -> 31711.6 | Q29: =Q10*0.4 -> 2659.082353 | R29: =Q11*0.4 -> 45204.4 | W29: =W10*0.4 -> 2379.011765 | X29: =W11*0.4 -> 40443.2 | AC29: =AC10*0.4 -> 1792.729412 | AD29: =AC11*0.4 -> 30476.4
E30: =E29 -> 42.85517241 | F30: =E12*0.4+(C3) -> 4285.6 | K30: =K29 -> 1865.388235 | L30: =K12*0.4+(I3) -> 45145 | Q30: =Q29 -> 2659.082353 | R30: =Q12*0.4+(O3) -> 65940.4 | W30: =W29 -> 2379.011765 | X30: =W12*0.4+(U3) -> 68031.2 | AC30: =AC29 -> 1792.729412 | AD30: =AC12*0.4+(AA3) -> 46603.8
E31: =E10*0.3 -> 32.14137931 | F31: =E11*0.3 -> 1864.2 | K31: =K10*0.3 -> 1399.041176 | L31: =K11*0.3 -> 23783.7 | Q31: =Q10*0.3 -> 1994.311765 | R31: =Q11*0.3 -> 33903.3 | W31: =W10*0.3 -> 1784.258824 | X31: =W11*0.3 -> 30332.4 | AC31: =AC10*0.3 -> 1344.547059 | AD31: =AC11*0.3 -> 22857.3
E32: =E31 -> 32.14137931 | F32: =E12*0.3+(C3) -> 3964.2 | K32: =K31 -> 1399.041176 | L32: =K12*0.3+(I3) -> 39456 | Q32: =Q31 -> 1994.311765 | R32: =Q12*0.3+(O3) -> 58095.3 | W32: =W31 -> 1784.258824 | X32: =W12*0.3+(U3) -> 62518.4 | AC32: =AC31 -> 1344.547059 | AD32: =AC12*0.3+(AA3) -> 41672.6
E33: =E10*0.2 -> 21.4275862 | F33: =E11*0.2 -> 1242.8 | K33: =K10*0.2 -> 932.6941176 | L33: =K11*0.2 -> 15855.8 | Q33: =Q10*0.2 -> 1329.541176 | R33: =Q11*0.2 -> 22602.2 | W33: =W10*0.2 -> 1189.505882 | X33: =W11*0.2 -> 20221.6 | AC33: =AC10*0.2 -> 896.3647059 | AD33: =AC11*0.2 -> 15238.2
E34: =E33 -> 21.4275862 | F34: =E12*0.2+(C3) -> 3642.8 | K34: =K33 -> 932.6941176 | L34: =K12*0.2+(I3) -> 33767 | Q34: =Q33 -> 1329.541176 | R34: =Q12*0.2+(O3) -> 50250.2 | W34: =W33 -> 1189.505882 | X34: =W12*0.2+(U3) -> 57005.6 | AC34: =AC33 -> 896.3647059 | AD34: =AC12*0.2+(AA3) -> 36741.4
E35: =E10*0.1 -> 10.7137931 | F35: =E11*0.1 -> 621.3999999 | K35: =K10*0.1 -> 466.3470588 | L35: =K11*0.1 -> 7927.9 | Q35: =Q10*0.1 -> 664.7705882 | R35: =Q11*0.1 -> 11301.1 | W35: =W10*0.1 -> 594.7529412 | X35: =W11*0.1 -> 10110.8 | AC35: =AC10*0.1 -> 448.1823529 | AD35: =AC11*0.1 -> 7619.1
E36: =E35 -> 10.7137931 | F36: =E12*0.1+(C3) -> 3321.4 | K36: =K35 -> 466.3470588 | L36: =K12*0.1+(I3) -> 28078 | Q36: =Q35 -> 664.7705882 | R36: =Q12*0.1+(O3) -> 42405.1 | W36: =W35 -> 594.7529412 | X36: =W12*0.1+(U3) -> 51492.8 | AC36: =AC35 -> 448.1823529 | AD36: =AC12*0.1+(AA3) -> 31810.2
B40: PRODUCTO | C40: CANTIDAD | D40: PRECIO | E40: VENTAS | H40: PRODUCTO | I40: CANTIDAD | J40: PRECIO | K40: VENTAS | N40: PRODUCTO | O40: CANTIDAD | P40: PRECIO | Q40: VENTAS | T40: PRODUCTO | U40: CANTIDAD | V40: PRECIO | W40: VENTAS | Z40: PRODUCTO | AA40: CANTIDAD | AB40: PRECIO | AC40: VENTAS
B41: A | C41: 107.137931 | D41: 58 | E41: =C41*D41 -> 6213.999999 | H41: A | I41: 4663.470588 | J41: 17 | K41: =I41*J41 -> 79279 | N41: A | O41: 6647.705882 | P41: 17 | Q41: =O41*P41 -> 113011 | T41: A | U41: 5947.529412 | V41: 17 | W41: =U41*V41 -> 101108 | Z41: A | AA41: 4481.823529 | AB41: 17 | AC41: =AA41*AB41 -> 76191

Sheet Hoja2
B2: 1 | C2: 2 | D2: 3 | E2: 4 | F2: 5
A3: COSTOS FIJOS | B3: 3000 | C3: 22389 | D3: 34560 | E3: 45980 | F3: 26879
A4: COSTOS VARIABLES | B4: 3214 | C4: 56890 | D4: 78451 | E4: 55128 | F4: 49312
